Workbook

Sheet MD
A1: TYPE | B1: BUSINESS | C1: CITY | D1: WEEK | E1: SHIPMENT DATE | F1: SKU_ ID | G1: SKU_PLATFORM | H1: SKU_DESCRIPTION | I1: Case Weight | J1: Item per case | K1: Case per pallet | L1: PL per case | M1: Cs, per layer | N1: Price, It | O1: Price, CS | P1: Order, CS | Q1: Forecast w-1, cs | R1: Forecast w-2, cs | S1: Forecast w-3, cs | T1: Forecast w-4, cs | U1: Forecast w-5, cs | V1: Forecast w-6, cs | W1: Forecast w-7, cs | X1: Forecast w-8, cs | Y1: Pallets | Z1: Weight | AA1: Cases | AB1: Sum
A2: NORTH_SOUTH | B2: DANONE | F2: 211101 | G2: DANONE 110G | H2: клубника | I2: 2.64 | J2: 24 | K2: 1 | L2: =1/K2 -> 1 | N2: 53.85 | O2: =N2*J2 -> 1292.4 | P2: 200 | Y2: =SUMPRODUCT($P$2:$P$20000,$L$2:$L$20000) ->  | Z2: =SUMPRODUCT($I$2:$I$20000,$P$2:$P$20000)/1000 -> 1.09342 | AA2: =SUM(P:P) -> 379 | AB2: =SUMPRODUCT($P$2:$P$20000,$O$2:$O$20000) -> 532572.138
A3: NORTH_SOUTH | B3: DANONE | C3: =C2 -> 0 | D3: =D2 -> 0 | E3: =E2 -> 0 | F3: 211109 | G3: DANONE 110G | H3: вишня | I3: 2.64 | J3: 24 | K3: 1 | L3: =1/K3 -> 1 | N3: 53.85 | O3: 1292.4 | P3: 1
A4: NORTH_SOUTH | B4: DANONE | C4: =C3 -> 0 | D4: =D3 -> 0 | E4: =E3 -> 0 | F4: 2111013 | G4: DANONE 110G | H4: черника | I4: 2.64 | J4: 24 | K4: 1 | L4: 1 | N4: 53.85 | O4: 1292.4 | P4: 1
A5: NORTH_SOUTH | B5: DANONE | C5: 0 | D5: 0 | E5: 0 | F5: 211102 | G5: DANONE 110G | H5: персик-маракуйя | I5: 2.64 | J5: 24 | K5: 1 | L5: 1 | N5: 53.85 | O5: 1292.4 | P5: 1
A6: NORTH_SOUTH | B6: DANONE | C6: 0 | D6: 0 | E6: 0 | F6: 2111014 | G6: DANONE 4*110G multipack | H6: клубника | I6: 2.64 | J6: 6 | K6: 1 | L6: 1 | N6: 185.47 | O6: 1112.82 | P6: 1
A7: NORTH_SOUTH | B7: DANONE | C7: 0 | D7: 0 | E7: 0 | F7: 2111094 | G7: DANONE 4*110G multipack | H7: вишня | I7: 2.64 | J7: 6 | K7: 1 | L7: 1 | N7: 185.47 | O7: 1112.82 | P7: 1
A8: NORTH_SOUTH | B8: DANONE | C8: 0 | D8: 0 | E8: 0 | F8: 21110134 | G8: DANONE 4*110G multipack | H8: персик-маракуйя | I8: 2.64 | J8: 6 | K8: 1 | L8: 1 | N8: 185.47 | O8: 1112.82 | P8: 1
A9: NORTH_SOUTH | B9: DANONE | C9: 0 | D9: 0 | E9: 0 | F9: 21110024 | G9: DANONE 4*110G multipack | H9: черника | I9: 2.64 | J9: 6 | K9: 1 | L9: 1 | N9: 185.47 | O9: 1112.82 | P9: 1
A10: NORTH_SOUTH | B10: DANONE | C10: 0 | D10: 0 | E10: 0 | F10: 112901 | G10: DANONE 290G DRINK | H10: клубника | I10: 2.61 | J10: 9 | K10: 1 | L10: 1 | N10: 121.37 | O10: 1092.33 | P10: 1
A11: NORTH_SOUTH | B11: DANONE | C11: 0 | D11: 0 | E11: 0 | F11: 1129016 | G11: DANONE 290G DRINK | H11: персик | I11: 2.61 | J11: 9 | K11: 1 | L11: 1 | N11: 121.37 | O11: 1092.33 | P11: 1
A12: NORTH_SOUTH | B12: DANONE | C12: 0 | D12: 0 | E12: 0 | F12: 1129018 | G12: DANONE 290G DRINK | H12: вишня-черешня | I12: 2.61 | J12: 9 | K12: 1 | L12: 1 | N12: 121.37 | O12: 1092.33 | P12: 1
A13: NORTH_SOUTH | B13: DANONE | C13: 0 | D13: 0 | E13: 0 | F13: 119300 | G13: Danone 930 DRINK | H13: натуральный | I13: 5.58 | J13: 6 | K13: 1 | L13: 1 | N13: 277.78 | O13: 1666.68 | P13: 1
A14: NORTH_SOUTH | B14: DANONE | C14: 0 | D14: 0 | E14: 0 | F14: 21618 | G14: ACTIMEL Imunnovitamin 1X100 (6 PACK) | H14: клубника | I14: 2.4 | J14: 24 | K14: 1 | L14: 1 | N14: 82.05 | O14: 1969.2 | P14: 1
A15: NORTH_SOUTH | B15: DANONE | C15: 0 | D15: 0 | E15: 0 | F15: 30269 | G15: ACTIMEL Imunnovitamin 1X100 (6 PACK) | H15: земляника-шиповник | I15: 2.4 | J15: 24 | K15: 1 | L15: 1 | N15: 82.05 | O15: 1969.2 | P15: 1
A16: NORTH_SOUTH | B16: DANONE | C16: 0 | D16: 0 | E16: 0 | F16: 21616 | G16: ACTIMEL Imunnovitamin 1X100 (6 PACK) | H16: натуральный | I16: 2.4 | J16: 24 | K16: 1 | L16: 1 | N16: 82.05 | O16: 1969.2 | P16: 1
A17: NORTH_SOUTH | B17: DANONE | C17: 0 | D17: 0 | E17: 0 | F17: 21084 | G17: ACTIMEL Imunnovitamin 1X100 (6 PACK) | H17: гранат | I17: 2.4 | J17: 24 | K17: 1 | L17: 1 | N17: 82.05 | O17: 1969.2 | P17: 1
A18: NORTH_SOUTH | B18: DANONE | C18: 0 | D18: 0 | E18: 0 | F18: 82408 | G18: ACTIMEL Imunnovitamin 1X100 (6 PACK) | H18: клубника-киви | I18: 2.4 | J18: 24 | K18: 1 | L18: 1 | N18: 82.05 | O18: 1969.2 | P18: 1
A19: NORTH_SOUTH | B19: DANONE | C19: 0 | D19: 0 | E19: 0 | F19: 21139 | G19: ACTIMEL Imunnovitamin 1X100 (6 PACK) | H19: черника-ежевика | I19: 2.4 | J19: 24 | K19: 1 | L19: 1 | N19: 82.05 | O19: 1969.2 | P19: 1
A20: NORTH_SOUTH | B20: DANONE | C20: 0 | D20: 0 | E20: 0 | F20: 85921 | G20: ACTIMEL Imunnovitamin 1X100 (6 PACK) | H20: розовый грейпфрут | I20: 2.4 | J20: 24 | K20: 1 | L20: 1 | N20: 82.05 | O20: 1969.2 | P20: 1
A21: NORTH_SOUTH | B21: DANONE | C21: 0 | D21: 0 | E21: 0 | F21: 99604 | G21: ACTIVIA 130G | H21: отруби-злаки | I21: 1.04 | J21: 8 | K21: 1 | L21: 1 | N21: 135.04 | O21: 1080.32 | P21: 1
A22: NORTH_SOUTH | B22: DANONE | C22: 0 | D22: 0 | E22: 0 | F22: 100693 | G22: ACTIVIA 130G | H22: клубника | I22: 1.04 | J22: 8 | K22: 1 | L22: 1 | N22: 135.04 | O22: 1080.32 | P22: 1
A23: NORTH_SOUTH | B23: DANONE | C23: 0 | D23: 0 | E23: 0 | F23: 99605 | G23: ACTIVIA 130G | H23: чернослив | I23: 1.04 | J23: 8 | K23: 1 | L23: 1 | N23: 135.04 | O23: 1080.32 | P23: 1
A24: NORTH_SOUTH | B24: DANONE | C24: 0 | D24: 0 | E24: 0 | F24: 99607 | G24: ACTIVIA 130G | H24: инжир-курага-чернослив | I24: 1.04 | J24: 8 | K24: 1 | L24: 1 | N24: 135.04 | O24: 1080.32 | P24: 1
A25: NORTH_SOUTH | B25: DANONE | C25: 0 | D25: 0 | E25: 0 | F25: 100692 | G25: ACTIVIA 130G | H25: малина | I25: 1.04 | J25: 8 | K25: 1 | L25: 1 | N25: 135.04 | O25: 1080.32 | P25: 1
A26: NORTH_SOUTH | B26: DANONE | C26: 0 | D26: 0 | E26: 0 | F26: 99606 | G26: ACTIVIA 130G | H26: натуральный | I26: 1.04 | J26: 8 | K26: 1 | L26: 1 | N26: 113.68 | O26: 909.44 | P26: 1
A27: NORTH_SOUTH | B27: DANONE | C27: 0 | D27: 0 | E27: 0 | F27: 221251 | G27: ACTIVIA 150G | H27: клубника | I27: 1.8 | J27: 12 | K27: 1 | L27: 1 | N27: 67.52 | O27: 810.24 | P27: 1
A28: NORTH_SOUTH | B28: DANONE | C28: 0 | D28: 0 | E28: 0 | F28: 221255 | G28: ACTIVIA 150G | H28: чернослив | I28: 1.8 | J28: 12 | K28: 1 | L28: 1 | N28: 67.52 | O28: 810.24 | P28: 1
A29: NORTH_SOUTH | B29: DANONE | C29: 0 | D29: 0 | E29: 0 | F29: 221258 | G29: ACTIVIA 150G | H29: мюсли | I29: 1.8 | J29: 12 | K29: 1 | L29: 1 | N29: 67.52 | O29: 810.24 | P29: 1
A30: NORTH_SOUTH | B30: DANONE | C30: 0 | D30: 0 | E30: 0 | F30: 2212517 | G30: ACTIVIA 150G | H30: отруби-злаки | I30: 1.8 | J30: 12 | K30: 1 | L30: 1 | N30: 67.52 | O30: 810.24 | P30: 1
A31: NORTH_SOUTH | B31: DANONE | C31: 0 | D31: 0 | E31: 0 | F31: 2212509 | G31: ACTIVIA 150G | H31: вишня | I31: 1.8 | J31: 12 | K31: 1 | L31: 1 | N31: 67.52 | O31: 810.24 | P31: 1
A32: NORTH_SOUTH | B32: DANONE | C32: 0 | D32: 0 | E32: 0 | F32: 122904 | G32: ACTIVIA 290G DRINK | H32: злаки | I32: 2.61 | J32: 9 | K32: 1 | L32: 1 | N32: 156.41 | O32: 1407.69 | P32: 1
A33: NORTH_SOUTH | B33: DANONE | C33: 0 | D33: 0 | E33: 0 | F33: 1229014 | G33: ACTIVIA 290G DRINK | H33: ананас | I33: 2.61 | J33: 9 | K33: 1 | L33: 1 | N33: 156.41 | O33: 1407.69 | P33: 1
A34: NORTH_SOUTH | B34: DANONE | C34: 0 | D34: 0 | E34: 0 | F34: 1229015 | G34: ACTIVIA 290G DRINK | H34: яблоко-злаки | I34: 2.61 | J34: 9 | K34: 1 | L34: 1 | N34: 156.41 | O34: 1407.69 | P34: 1
A35: NORTH_SOUTH | B35: DANONE | C35: 0 | D35: 0 | E35: 0 | F35: 122905 | G35: ACTIVIA 290G DRINK | H35: чернослив | I35: 2.61 | J35: 9 | K35: 1 | L35: 1 | N35: 156.41 | O35: 1407.69 | P35: 1
A36: NORTH_SOUTH | B36: DANONE | C36: 0 | D36: 0 | E36: 0 | F36: 122906 | G36: ACTIVIA 290G DRINK | H36: злаки-малина | I36: 2.61 | J36: 9 | K36: 1 | L36: 1 | N36: 156.41 | O36: 1407.69 | P36: 1
A37: NORTH_SOUTH | B37: DANONE | C37: 0 | D37: 0 | E37: 0 | F37: 21052 | G37: ACTIVIA 290G DRINK | H37: натуральный | I37: 2.61 | J37: 9 | K37: 1 | L37: 1 | N37: 135.04 | O37: 1215.36 | P37: 1
A38: NORTH_SOUTH | B38: DANONE | C38: 0 | D38: 0 | E38: 0 | F38: 122907 | G38: ACTIVIA 290G DRINK | H38: клубника-земляника | I38: 2.61 | J38: 9 | K38: 1 | L38: 1 | N38: 156.41 | O38: 1407.69 | P38: 1
A39: NORTH_SOUTH | B39: DANONE | C39: 0 | D39: 0 | E39: 0 | F39: 1229001 | G39: ACTIVIA CLASSIC 290G DRINK | H39: клубника | I39: 2.61 | J39: 9 | K39: 1 | L39: 1 | N39: 135.04 | O39: 1215.36 | P39: 1
A40: NORTH_SOUTH | B40: DANONE | C40: 0 | D40: 0 | E40: 0 | F40: 1229016 | G40: ACTIVIA CLASSIC 290G DRINK | H40: персик | I40: 2.61 | J40: 9 | K40: 1 | L40: 1 | N40: 135.04 | O40: 1215.36 | P40: 1
A41: NORTH_SOUTH | B41: DANONE | C41: 0 | D41: 0 | E41: 0 | F41: 1229023 | G41: ACTIVIA CLASSIC 290G DRINK | H41: ваниль | I41: 2.61 | J41: 9 | K41: 1 | L41: 1 | N41: 135.04 | O41: 1215.36 | P41: 1
A42: NORTH_SOUTH | B42: DANONE | C42: 0 | D42: 0 | E42: 0 | F42: 126900 | G42: ACTIVIA 690G DRINK | H42: натуральный | I42: 5.52 | J42: 8 | K42: 1 | L42: 1 | N42: 270.94 | O42: 2167.52 | P42: 1
A43: NORTH_SOUTH | B43: DANONE | C43: 0 | D43: 0 | E43: 0 | F43: 126904 | G43: ACTIVIA 690G DRINK | H43: злаки | I43: 5.52 | J43: 8 | K43: 1 | L43: 1 | N43: 299.15 | O43: 2393.2 | P43: 1
A44: NORTH_SOUTH | B44: DANONE | C44: 0 | D44: 0 | E44: 0 | F44: 126905 | G44: ACTIVIA 690G DRINK | H44: чернослив | I44: 5.52 | J44: 8 | K44: 1 | L44: 1 | N44: 299.15 | O44: 2393.2 | P44: 1
A45: NORTH_SOUTH | B45: DANONE | C45: 0 | D45: 0 | E45: 0 | F45: 126906 | G45: ACTIVIA 690G DRINK | H45: злаки-малина | I45: 5.52 | J45: 8 | K45: 1 | L45: 1 | N45: 299.15 | O45: 2393.2 | P45: 1
A46: NORTH_SOUTH | B46: DANONE | C46: 0 | D46: 0 | E46: 0 | F46: 126907 | G46: ACTIVIA 690G DRINK | H46: клубника - земляника | I46: 5.52 | J46: 8 | K46: 1 | L46: 1 | N46: 299.15 | O46: 2393.2 | P46: 1
A47: NORTH_SOUTH | B47: DANONE | C47: 0 | D47: 0 | E47: 0 | F47: 12690012 | G47: ACTIVIA CLASSIC 690G DRINK | H47: клубника | I47: 5.52 | J47: 8 | K47: 1 | L47: 1 | N47: 277.78 | O47: 2222.24 | P47: 1
A48: NORTH_SOUTH | B48: DANONE | C48: 0 | D48: 0 | E48: 0 | F48: 1269016 | G48: ACTIVIA CLASSIC 690G DRINK | H48: персик | I48: 5.52 | J48: 8 | K48: 1 | L48: 1 | N48: 277.78 | O48: 2222.24 | P48: 1
A49: NORTH_SOUTH | B49: DANONE | C49: 0 | D49: 0 | E49: 0 | F49: 1269023 | G49: ACTIVIA CLASSIC 690G DRINK | H49: ваниль | I49: 5.52 | J49: 6 | K49: 1 | L49: 1 | N49: 277.78 | O49: 1666.68 | P49: 1
A50: NORTH_SOUTH | B50: DANONE | C50: 0 | D50: 0 | E50: 0 | F50: 20982 | G50: RASTISHKA DRINK 4X90G | H50: земляника | I50: 2.16 | J50: 6 | K50: 1 | L50: 1 | N50: 327.35 | O50: 1964.1 | P50: 1
A51: NORTH_SOUTH | B51: DANONE | C51: 0 | D51: 0 | E51: 0 | F51: 101096 | G51: RASTISHKA DRINK 4X90G | H51: яблоко | I51: 2.16 | J51: 6 | K51: 1 | L51: 1 | N51: 327.35 | O51: 1964.1 | P51: 1
A52: NORTH_SOUTH | B52: DANONE | C52: 0 | D52: 0 | E52: 0 | F52: 20983 | G52: RASTISHKA DRINK 4X90G | H52: лесные ягоды | I52: 2.16 | J52: 6 | K52: 1 | L52: 1 | N52: 327.35 | O52: 1964.1 | P52: 1
A53: NORTH_SOUTH | B53: DANONE | C53: 0 | D53: 0 | E53: 0 | F53: 11244 | G53: RASTISHKA DRINK 200G | H53: клубника | I53: 1.8 | J53: 6 | K53: 1 | L53: 1 | N53: 135.04 | O53: 810.24 | P53: 1
A54: NORTH_SOUTH | B54: DANONE | C54: 0 | D54: 0 | E54: 0 | F54: 101097 | G54: RASTISHKA DRINK 200G | H54: яблоко | I54: 1.8 | J54: 6 | K54: 1 | L54: 1 | N54: 135.04 | O54: 810.24 | P54: 1
A55: NORTH_SOUTH | B55: DANONE | C55: 0 | D55: 0 | E55: 0 | F55: 53311 | G55: RASTISHKA DRINK 200G | H55: лесные ягоды-злаки | I55: 1.8 | J55: 9 | K55: 1 | L55: 1 | N55: 135.04 | O55: 1215.36 | P55: 1
A56: NORTH_SOUTH | B56: DANONE | C56: 0 | D56: 0 | E56: 0 | F56: 42913 | G56: RASTISHKA 6X45G | H56: клубника-абрикос | I56: 2.16 | J56: 9 | K56: 1 | L56: 1 | N56: 241.88 | O56: 2176.92 | P56: 1
A57: NORTH_SOUTH | B57: DANONE | C57: 0 | D57: 0 | E57: 0 | F57: 42914 | G57: RASTISHKA 6X45G | H57: лесные ягоды-персик | I57: 2.16 | J57: 9 | K57: 1 | L57: 1 | N57: 241.88 | O57: 2176.92 | P57: 1
A58: NORTH_SOUTH | B58: DANONE | C58: 0 | D58: 0 | E58: 0 | F58: 101184 | G58: RASTISHKA 6X45G | H58: яблоко-банан-пломбир | I58: 2.16 | J58: 8 | K58: 1 | L58: 1 | N58: 241.88 | O58: 1935.04 | P58: 1
A59: NORTH_SOUTH | B59: DANONE | C59: 0 | D59: 0 | E59: 0 | F59: 231101 | G59: RASTISHKA 110G yoghurt | H59: клубника | I59: 2.64 | J59: 8 | K59: 1 | L59: 1 | N59: 64.1 | O59: 512.8 | P59: 1
A60: NORTH_SOUTH | B60: DANONE | C60: 0 | D60: 0 | E60: 0 | F60: 2311010 | G60: RASTISHKA 110G yoghurt | H60: яблоко-груша | I60: 2.64 | J60: 8 | K60: 1 | L60: 1 | N60: 64.1 | O60: 512.8 | P60: 1
A61: NORTH_SOUTH | B61: DANONE | C61: 0 | D61: 0 | E61: 0 | F61: 2311014 | G61: RASTISHKA 110G yoghurt | H61: натуральный | I61: 2.64 | J61: 24 | K61: 1 | L61: 1 | N61: 64.1 | O61: 1538.4 | P61: 1
A62: NORTH_SOUTH | B62: DANONE | C62: 0 | D62: 0 | E62: 0 | F62: 2311017 | G62: RASTISHKA 110G yoghurt | H62: банан | I62: 2.64 | J62: 24 | K62: 1 | L62: 1 | N62: 64.1 | O62: 1538.4 | P62: 1
A63: NORTH_SOUTH | B63: DANONE | C63: 0 | D63: 0 | E63: 0 | F63: 34411255 | G63: RASTISHKA 4x110G multipack | H63: клубника | I63: 2.64 | J63: 24 | K63: 1 | L63: 1 | N63: 256.41 | O63: 6153.84 | P63: 1
A64: NORTH_SOUTH | B64: DANONE | C64: 0 | D64: 0 | E64: 0 | F64: 34411265 | G64: RASTISHKA 4x110G multipack | H64: яблоко-груша | I64: 2.64 | J64: 24 | K64: 1 | L64: 1 | N64: 256.41 | O64: 6153.84 | P64: 1
A65: NORTH_SOUTH | B65: DANONE | C65: 0 | D65: 0 | E65: 0 | F65: 2311019 | G65: RASTISHKA 4x110G multipack | H65: натуральный | I65: 2.64 | J65: 6 | K65: 1 | L65: 1 | N65: 256.41 | O65: 1538.46 | P65: 1
A66: NORTH_SOUTH | B66: DANONE | C66: 0 | D66: 0 | E66: 0 | F66: 2311025 | G66: RASTISHKA 4x110G multipack | H66: банан | I66: 2.64 | J66: 6 | K66: 1 | L66: 1 | N66: 256.41 | O66: =N66*J66 -> 1538.46 | P66: 1
A67: NORTH_SOUTH | B67: DANONE | C67: 0 | D67: 0 | E67: 0 | F67: 100716 | G67: RASTISHKA cheese 100G | H67: клубника | I67: 0.8 | J67: 6 | K67: 1 | L67: =1/K67 -> 1 | N67: 78.63 | O67: 471.78 | P67: 1
A68: NORTH_SOUTH | B68: DANONE | C68: =C67 -> 0 | D68: =D67 -> 0 | E68: =E67 -> 0 | F68: 100715 | G68: RASTISHKA cheese 100G | H68: банан | I68: 0.8 | J68: 6 | K68: 1 | L68: 1 | N68: 78.63 | O68: 471.78 | P68: 1
A69: NORTH_SOUTH | B69: DANONE | C69: 0 | D69: 0 | E69: 0 | F69: 100713 | G69: RASTISHKA cheese 100G | H69: абрикос | I69: 0.8 | J69: 8 | K69: 1 | L69: 1 | N69: 78.63 | O69: 629.04 | P69: 1
A70: NORTH_SOUTH | B70: DANONE | C70: 0 | D70: 0 | E70: 0 | F70: 99614 | G70: DANISSIMO 130G | H70: шоколад браво | I70: 1.04 | J70: 8 | K70: 1 | L70: 1 | N70: 135.04 | O70: 1080.32 | P70: 1
A71: NORTH_SOUTH | B71: DANONE | C71: 0 | D71: 0 | E71: 0 | F71: 99619 | G71: DANISSIMO 130G | H71: клубника с кусочками бисквита | I71: 1.04 | J71: 8 | K71: 1 | L71: 1 | N71: 135.04 | O71: 1080.32 | P71: 1
A72: NORTH_SOUTH | B72: DANONE | C72: 0 | D72: 0 | E72: 0 | F72: 99615 | G72: DANISSIMO 130G | H72: хрустящие шарики | I72: 1.04 | J72: 8 | K72: 1 | L72: 1 | N72: 135.04 | O72: 1080.32 | P72: 1
A73: NORTH_SOUTH | B73: DANONE | C73: 0 | D73: 0 | E73: 0 | F73: 99618 | G73: DANISSIMO 130G | H73: пломбир | I73: 1.04 | J73: 8 | K73: 1 | L73: 1 | N73: 135.04 | O73: 1080.32 | P73: 1
A74: NORTH_SOUTH | B74: DANONE | C74: 0 | D74: 0 | E74: 0 | F74: 83692 | G74: DANISSIMO 130G | H74: яблоко-киви | I74: 1.68 | J74: 8 | K74: 1 | L74: 1 | N74: 156.41 | O74: 1251.28 | P74: 1
A75: NORTH_SOUTH | B75: DANONE | C75: 0 | D75: 0 | E75: 0 | F75: 85747 | G75: DANISSIMO 130G | H75: черная смородина | I75: 1.68 | J75: 8 | K75: 1 | L75: 1 | N75: 156.41 | O75: 1251.28 | P75: 1
A76: NORTH_SOUTH | B76: DANONE | C76: 0 | D76: 0 | E76: 0 | F76: 48924 | G76: DANISSIMO 130G | H76: Фантазия Хрустящие шарики | I76: 1.26 | J76: 12 | K76: 1 | L76: 1 | N76: 113.68 | O76: 1364.16 | P76: 1
A77: NORTH_SOUTH | B77: DANONE | C77: 0 | D77: 0 | E77: 0 | F77: 87437 | G77: DANISSIMO 130G | H77: Вишня-Шоколад | I77: 1.68 | J77: 12 | K77: 1 | L77: 1 | N77: 156.41 | O77: 1876.92 | P77: 1
A78: NORTH_SOUTH | B78: DANONE | C78: 0 | D78: 0 | E78: 0 | F78: 15693003 | G78: Prostokvashino Zakvaska 930g | H78: 0.015 | I78: 5.58 | J78: 12 | K78: 1 | L78: 1 | N78: 277.78 | O78: 3333.36 | P78: 1
A79: NORTH_SOUTH | B79: DANONE | C79: 0 | D79: 0 | E79: 0 | F79: 1569304 | G79: Prostokvashino Zakvaska 930g | H79: злаки | I79: 5.58 | J79: 12 | K79: 1 | L79: 1 | N79: 277.78 | O79: 3333.36 | P79: 1
A80: NORTH_SOUTH | B80: DANONE | C80: 0 | D80: 0 | E80: 0 | F80: 1593005 | G80: Prostokvashino Kefir 930g | H80: 0.025 | I80: 5.58 | J80: 6 | K80: 1 | L80: 1 | N80: 277.78 | O80: 1666.68 | P80: 1
A81: NORTH_SOUTH | B81: DANONE | C81: 0 | D81: 0 | E81: 0 | F81: 1593006 | G81: Prostokvashino Kefir 930g | H81: 0.032 | I81: 5.58 | J81: 6 | K81: 1 | L81: 1 | N81: 292.31 | O81: 1753.86 | P81: 1
A82: NORTH_SOUTH | B82: DANONE | C82: 0 | D82: 0 | E82: 0 | F82: 1593000 | G82: Bio Balance kefirniy 930g | H82: 0% | I82: 5.58 | J82: 6 | K82: 1 | L82: 1 | N82: 263.25 | O82: 1579.5 | P82: 1
A83: NORTH_SOUTH | B83: DANONE | C83: 0 | D83: 0 | E83: 0 | F83: 1593001 | G83: Bio Balance kefirniy 930g | H83: 1% | I83: 5.58 | J83: 6 | K83: 1 | L83: 1 | N83: 270.94 | O83: 1625.64 | P83: 1
A84: NORTH_SOUTH | B84: DANONE | C84: 0 | D84: 0 | E84: 0 | F84: 1593015 | G84: Bio Balance kefirniy 930g | H84: 2,5% | I84: 5.58 | J84: 6 | K84: 1 | L84: 1 | N84: 277.78 | O84: 1666.68 | P84: 1
A85: NORTH_SOUTH | B85: DANONE | C85: 0 | D85: 0 | E85: 0 | F85: 1593002 | G85: Bio Balance kefirniy Multipack 2x930g | H85: 0% | I85: 11.16 | J85: 6 | K85: 1 | L85: 1 | N85: 394.8749538 | O85: 2369.249723 | P85: 1
A86: NORTH_SOUTH | B86: DANONE | C86: 0 | D86: 0 | E86: 0 | F86: 1593007 | G86: Bio Balance kefirniy Multipack 2x930g | H86: 1% | I86: 11.16 | J86: 6 | K86: 1 | L86: 1 | N86: 406.8408615 | O86: 2441.045169 | P86: 1
A87: NORTH_SOUTH | B87: DANONE | C87: 0 | D87: 0 | E87: 0 | F87: 1593008 | G87: Bio Balance kefirniy Multipack 2x930g | H87: 2,5% | I87: 11.16 | J87: 6 | K87: 1 | L87: 1 | N87: 417.0973538 | O87: 2502.584123 | P87: 1
A88: NORTH_SOUTH | B88: DANONE | C88: 0 | D88: 0 | E88: 0 | F88: 1593036 | G88: 930g Bio Balance IMMUNO Complex | H88: гранат | I88: 5.58 | K88: 1 | L88: 1 | N88: 299.15 | O88: 0 | P88: 1
A89: NORTH_SOUTH | B89: DANONE | C89: 0 | D89: 0 | E89: 0 | F89: 1593021 | G89: 930g Bio Balance IMMUNO Complex | H89: ваниль | I89: 5.58 | K89: 1 | L89: 1 | N89: 299.15 | O89: 0 | P89: 1
A90: NORTH_SOUTH | B90: DANONE | C90: 0 | D90: 0 | E90: 0 | F90: 1593092 | G90: 930g Bio Balance IMMUNO Complex | H90: клубника | I90: 5.58 | K90: 1 | L90: 1 | N90: 299.15 | O90: 0 | P90: 1
A91: NORTH_SOUTH | B91: DANONE | C91: 0 | D91: 0 | E91: 0 | F91: 1593003 | G91: Bio Balance Airan 930g | H91: 0.015 | I91: 5.58 | K91: 1 | L91: 1 | N91: 249.57 | O91: 0 | P91: 1
A92: Korday_Chu_Merke | B92: DANONE | F92: 211101 | G92: DANONE 110G | H92: клубника | I92: 2.64 | J92: 24 | K92: 1 | L92: 1 | N92: 53.85 | O92: 1292.4 | P92: 1 | Y92: =SUMPRODUCT($P$2:$P$20000,$L$2:$L$20000) ->  | Z92: =SUMPRODUCT($I$2:$I$20000,$P$2:$P$20000)/1000 -> 1.09342 | AA92: =SUM(P:P) -> 379 | AB92: =SUMPRODUCT($P$2:$P$20000,$O$2:$O$20000) -> 532572.138
A93: Korday_Chu_Merke | B93: DANONE | C93: 0 | D93: 0 | E93: 0 | F93: 211109 | G93: DANONE 110G | H93: вишня | I93: 2.64 | J93: 24 | K93: 1 | L93: 1 | N93: 53.85 | O93: 1292.4 | P93: 1
A94: Korday_Chu_Merke | B94: DANONE | C94: 0 | D94: 0 | E94: 0 | F94: 2111013 | G94: DANONE 110G | H94: черника | I94: 2.64 | J94: 24 | K94: 1 | L94: 1 | N94: 53.85 | O94: 1292.4 | P94: 1
A95: Korday_Chu_Merke | B95: DANONE | C95: 0 | D95: 0 | E95: 0 | F95: 211102 | G95: DANONE 110G | H95: персик-маракуйя | I95: 2.64 | J95: 24 | K95: 1 | L95: 1 | N95: 53.85 | O95: 1292.4 | P95: 1
A96: Korday_Chu_Merke | B96: DANONE | C96: 0 | D96: 0 | E96: 0 | F96: 2111014 | G96: DANONE 4*110G multipack | H96: клубника | I96: 2.64 | J96: 6 | K96: 1 | L96: 1 | N96: 185.47 | O96: 1112.82 | P96: 1
A97: Korday_Chu_Merke | B97: DANONE | C97: 0 | D97: 0 | E97: 0 | F97: 2111094 | G97: DANONE 4*110G multipack | H97: вишня | I97: 2.64 | J97: 6 | K97: 1 | L97: 1 | N97: 185.47 | O97: 1112.82 | P97: 1
A98: Korday_Chu_Merke | B98: DANONE | C98: 0 | D98: 0 | E98: 0 | F98: 21110134 | G98: DANONE 4*110G multipack | H98: персик-маракуйя | I98: 2.64 | J98: 6 | K98: 1 | L98: 1 | N98: 185.47 | O98: 1112.82 | P98: 1
A99: Korday_Chu_Merke | B99: DANONE | C99: 0 | D99: 0 | E99: 0 | F99: 21110024 | G99: DANONE 4*110G multipack | H99: черника | I99: 2.64 | J99: 6 | K99: 1 | L99: 1 | N99: 185.47 | O99: 1112.82 | P99: 1
A100: Korday_Chu_Merke | B100: DANONE | C100: 0 | D100: 0 | E100: 0 | F100: 112901 | G100: DANONE 290G DRINK | H100: клубника | I100: 2.61 | J100: 9 | K100: 1 | L100: 1 | N100: 121.37 | O100: 1092.33 | P100: 1
A101: Korday_Chu_Merke | B101: DANONE | C101: 0 | D101: 0 | E101: 0 | F101: 1129016 | G101: DANONE 290G DRINK | H101: персик | I101: 2.61 | J101: 9 | K101: 1 | L101: 1 | N101: 121.37 | O101: 1092.33 | P101: 1
A102: Korday_Chu_Merke | B102: DANONE | C102: 0 | D102: 0 | E102: 0 | F102: 1129018 | G102: DANONE 290G DRINK | H102: вишня-черешня | I102: 2.61 | J102: 9 | K102: 1 | L102: 1 | N102: 121.37 | O102: 1092.33 | P102: 1
A103: Korday_Chu_Merke | B103: DANONE | C103: 0 | D103: 0 | E103: 0 | F103: 119300 | G103: Danone 930 DRINK | H103: натуральный | I103: 5.58 | J103: 6 | K103: 1 | L103: 1 | N103: 277.78 | O103: 1666.68 | P103: 1
A104: Korday_Chu_Merke | B104: DANONE | C104: 0 | D104: 0 | E104: 0 | F104: 21618 | G104: ACTIMEL Imunnovitamin 1X100 (6 PACK) | H104: клубника | I104: 2.4 | J104: 24 | K104: 1 | L104: 1 | N104: 82.05 | O104: 1969.2 | P104: 1
A105: Korday_Chu_Merke | B105: DANONE | C105: 0 | D105: 0 | E105: 0 | F105: 30269 | G105: ACTIMEL Imunnovitamin 1X100 (6 PACK) | H105: земляника-шиповник | I105: 2.4 | J105: 24 | K105: 1 | L105: 1 | N105: 82.05 | O105: 1969.2 | P105: 1
A106: Korday_Chu_Merke | B106: DANONE | C106: 0 | D106: 0 | E106: 0 | F106: 21616 | G106: ACTIMEL Imunnovitamin 1X100 (6 PACK) | H106: натуральный | I106: 2.4 | J106: 24 | K106: 1 | L106: 1 | N106: 82.05 | O106: 1969.2 | P106: 1
A107: Korday_Chu_Merke | B107: DANONE | C107: 0 | D107: 0 | E107: 0 | F107: 21084 | G107: ACTIMEL Imunnovitamin 1X100 (6 PACK) | H107: гранат | I107: 2.4 | J107: 24 | K107: 1 | L107: 1 | N107: 82.05 | O107: 1969.2 | P107: 1
A108: Korday_Chu_Merke | B108: DANONE | C108: 0 | D108: 0 | E108: 0 | F108: 82408 | G108: ACTIMEL Imunnovitamin 1X100 (6 PACK) | H108: клубника-киви | I108: 2.4 | J108: 24 | K108: 1 | L108: 1 | N108: 82.05 | O108: 1969.2 | P108: 1
A109: Korday_Chu_Merke | B109: DANONE | C109: 0 | D109: 0 | E109: 0 | F109: 21139 | G109: ACTIMEL Imunnovitamin 1X100 (6 PACK) | H109: черника-ежевика | I109: 2.4 | J109: 24 | K109: 1 | L109: 1 | N109: 82.05 | O109: 1969.2 | P109: 1
A110: Korday_Chu_Merke | B110: DANONE | C110: 0 | D110: 0 | E110: 0 | F110: 85921 | G110: ACTIMEL Imunnovitamin 1X100 (6 PACK) | H110: розовый грейпфрут | I110: 2.4 | J110: 24 | K110: 1 | L110: 1 | N110: 82.05 | O110: 1969.2 | P110: 1
A111: Korday_Chu_Merke | B111: DANONE | C111: 0 | D111: 0 | E111: 0 | F111: 99604 | G111: ACTIVIA 130G | H111: отруби-злаки | I111: 1.04 | J111: 8 | K111: 1 | L111: 1 | N111: 135.04 | O111: 1080.32 | P111: 1
A112: Korday_Chu_Merke | B112: DANONE | C112: 0 | D112: 0 | E112: 0 | F112: 100693 | G112: ACTIVIA 130G | H112: клубника | I112: 1.04 | J112: 8 | K112: 1 | L112: 1 | N112: 135.04 | O112: 1080.32 | P112: 1
A113: Korday_Chu_Merke | B113: DANONE | C113: 0 | D113: 0 | E113: 0 | F113: 99605 | G113: ACTIVIA 130G | H113: чернослив | I113: 1.04 | J113: 8 | K113: 1 | L113: 1 | N113: 135.04 | O113: 1080.32 | P113: 1
A114: Korday_Chu_Merke | B114: DANONE | C114: 0 | D114: 0 | E114: 0 | F114: 99607 | G114: ACTIVIA 130G | H114: инжир-курага-чернослив | I114: 1.04 | J114: 8 | K114: 1 | L114: 1 | N114: 135.04 | O114: 1080.32 | P114: 1
A115: Korday_Chu_Merke | B115: DANONE | C115: 0 | D115: 0 | E115: 0 | F115: 100692 | G115: ACTIVIA 130G | H115: малина | I115: 1.04 | J115: 8 | K115: 1 | L115: 1 | N115: 135.04 | O115: 1080.32 | P115: 1
A116: Korday_Chu_Merke | B116: DANONE | C116: 0 | D116: 0 | E116: 0 | F116: 99606 | G116: ACTIVIA 130G | H116: натуральный | I116: 1.04 | J116: 8 | K116: 1 | L116: 1 | N116: 113.68 | O116: 909.44 | P116: 1
A117: Korday_Chu_Merke | B117: DANONE | C117: 0 | D117: 0 | E117: 0 | F117: 221251 | G117: ACTIVIA 150G | H117: клубника | I117: 1.8 | J117: 12 | K117: 1 | L117: 1 | N117: 67.52 | O117: 810.24 | P117: 1
A118: Korday_Chu_Merke | B118: DANONE | C118: 0 | D118: 0 | E118: 0 | F118: 221255 | G118: ACTIVIA 150G | H118: чернослив | I118: 1.8 | J118: 12 | K118: 1 | L118: 1 | N118: 67.52 | O118: 810.24 | P118: 1
A119: Korday_Chu_Merke | B119: DANONE | C119: 0 | D119: 0 | E119: 0 | F119: 221258 | G119: ACTIVIA 150G | H119: мюсли | I119: 1.8 | J119: 12 | K119: 1 | L119: 1 | N119: 67.52 | O119: 810.24 | P119: 1
A120: Korday_Chu_Merke | B120: DANONE | C120: 0 | D120: 0 | E120: 0 | F120: 2212517 | G120: ACTIVIA 150G | H120: отруби-злаки | I120: 1.8 | J120: 12 | K120: 1 | L120: 1 | N120: 67.52 | O120: 810.24 | P120: 1
A121: Korday_Chu_Merke | B121: DANONE | C121: 0 | D121: 0 | E121: 0 | F121: 2212509 | G121: ACTIVIA 150G | H121: вишня | I121: 1.8 | J121: 12 | K121: 1 | L121: 1 | N121: 67.52 | O121: 810.24 | P121: 1
A122: Korday_Chu_Merke | B122: DANONE | C122: 0 | D122: 0 | E122: 0 | F122: 122904 | G122: ACTIVIA 290G DRINK | H122: злаки | I122: 2.61 | J122: 9 | K122: 1 | L122: 1 | N122: 156.41 | O122: 1407.69 | P122: 1
A123: Korday_Chu_Merke | B123: DANONE | C123: 0 | D123: 0 | E123: 0 | F123: 1229014 | G123: ACTIVIA 290G DRINK | H123: ананас | I123: 2.61 | J123: 9 | K123: 1 | L123: 1 | N123: 156.41 | O123: 1407.69 | P123: 1
A124: Korday_Chu_Merke | B124: DANONE | C124: 0 | D124: 0 | E124: 0 | F124: 1229015 | G124: ACTIVIA 290G DRINK | H124: яблоко-злаки | I124: 2.61 | J124: 9 | K124: 1 | L124: 1 | N124: 156.41 | O124: 1407.69 | P124: 1
A125: Korday_Chu_Merke | B125: DANONE | C125: 0 | D125: 0 | E125: 0 | F125: 122905 | G125: ACTIVIA 290G DRINK | H125: чернослив | I125: 2.61 | J125: 9 | K125: 1 | L125: 1 | N125: 156.41 | O125: 1407.69 | P125: 1
A126: Korday_Chu_Merke | B126: DANONE | C126: 0 | D126: 0 | E126: 0 | F126: 122906 | G126: ACTIVIA 290G DRINK | H126: злаки-малина | I126: 2.61 | J126: 9 | K126: 1 | L126: 1 | N126: 156.41 | O126: 1407.69 | P126: 1
A127: Korday_Chu_Merke | B127: DANONE | C127: 0 | D127: 0 | E127: 0 | G127: ACTIVIA 290G DRINK | H127: натуральный | I127: 2.61 | J127: 9 | K127: 1 | L127: 1 | N127: 135.04 | O127: 1215.36 | P127: 1
A128: Korday_Chu_Merke | B128: DANONE | C128: 0 | D128: 0 | E128: 0 | F128: 122907 | G128: ACTIVIA 290G DRINK | H128: клубника-земляника | I128: 2.61 | J128: 9 | K128: 1 | L128: 1 | N128: 156.41 | O128: 1407.69 | P128: 1
A129: Korday_Chu_Merke | B129: DANONE | C129: 0 | D129: 0 | E129: 0 | F129: 1229001 | G129: ACTIVIA CLASSIC 290G DRINK | H129: клубника | I129: 2.61 | J129: 9 | K129: 1 | L129: 1 | N129: 135.04 | O129: 1215.36 | P129: 1
A130: Korday_Chu_Merke | B130: DANONE | C130: 0 | D130: 0 | E130: 0 | F130: 1229016 | G130: ACTIVIA CLASSIC 290G DRINK | H130: персик | I130: 2.61 | J130: 9 | K130: 1 | L130: 1 | N130: 135.04 | O130: =N130*J130 -> 1215.36 | P130: 1
A131: Korday_Chu_Merke | B131: DANONE | C131: 0 | D131: 0 | E131: 0 | F131: 1229023 | G131: ACTIVIA CLASSIC 290G DRINK | H131: ваниль | I131: 2.61 | J131: 9 | K131: 1 | L131: =1/K131 -> 1 | N131: 135.04 | O131: 1215.36 | P131: 1
A132: Korday_Chu_Merke | B132: DANONE | C132: =C131 -> 0 | D132: =D131 -> 0 | E132: =E131 -> 0 | F132: 126900 | G132: ACTIVIA 690G DRINK | H132: натуральный | I132: 5.52 | J132: 8 | K132: 1 | L132: 1 | N132: 270.94 | O132: 2167.52 | P132: 1
A133: Korday_Chu_Merke | B133: DANONE | C133: 0 | D133: 0 | E133: 0 | F133: 126904 | G133: ACTIVIA 690G DRINK | H133: злаки | I133: 5.52 | J133: 8 | K133: 1 | L133: 1 | N133: 299.15 | O133: 2393.2 | P133: 1
A134: Korday_Chu_Merke | B134: DANONE | C134: 0 | D134: 0 | E134: 0 | F134: 126905 | G134: ACTIVIA 690G DRINK | H134: чернослив | I134: 5.52 | J134: 8 | K134: 1 | L134: 1 | N134: 299.15 | O134: 2393.2 | P134: 1
A135: Korday_Chu_Merke | B135: DANONE | C135: 0 | D135: 0 | E135: 0 | F135: 126906 | G135: ACTIVIA 690G DRINK | H135: злаки-малина | I135: 5.52 | J135: 8 | K135: 1 | L135: 1 | N135: 299.15 | O135: 2393.2 | P135: 1
A136: Korday_Chu_Merke | B136: DANONE | C136: 0 | D136: 0 | E136: 0 | F136: 126907 | G136: ACTIVIA 690G DRINK | H136: клубника - земляника | I136: 5.52 | J136: 8 | K136: 1 | L136: 1 | N136: 299.15 | O136: 2393.2 | P136: 1
A137: Korday_Chu_Merke | B137: DANONE | C137: 0 | D137: 0 | E137: 0 | F137: 12690012 | G137: ACTIVIA CLASSIC 690G DRINK | H137: клубника | I137: 5.52 | J137: 8 | K137: 1 | L137: 1 | N137: 277.78 | O137: 2222.24 | P137: 1
A138: Korday_Chu_Merke | B138: DANONE | C138: 0 | D138: 0 | E138: 0 | F138: 1269016 | G138: ACTIVIA CLASSIC 690G DRINK | H138: персик | I138: 5.52 | J138: 8 | K138: 1 | L138: 1 | N138: 277.78 | O138: 2222.24 | P138: 1
A139: Korday_Chu_Merke | B139: DANONE | C139: 0 | D139: 0 | E139: 0 | F139: 1269023 | G139: ACTIVIA CLASSIC 690G DRINK | H139: ваниль | I139: 5.52 | J139: 8 | K139: 1 | L139: 1 | N139: 277.78 | O139: 2222.24 | P139: 1
A140: Korday_Chu_Merke | B140: DANONE | C140: 0 | D140: 0 | E140: 0 | F140: 20982 | G140: RASTISHKA DRINK 4X90G | H140: земляника | I140: 2.16 | J140: 6 | K140: 1 | L140: 1 | N140: 327.35 | O140: 1964.1 | P140: 1
A141: Korday_Chu_Merke | B141: DANONE | C141: 0 | D141: 0 | E141: 0 | F141: 101096 | G141: RASTISHKA DRINK 4X90G | H141: яблоко | I141: 2.16 | J141: 6 | K141: 1 | L141: 1 | N141: 327.35 | O141: 1964.1 | P141: 1
A142: Korday_Chu_Merke | B142: DANONE | C142: 0 | D142: 0 | E142: 0 | F142: 20983 | G142: RASTISHKA DRINK 4X90G | H142: лесные ягоды | I142: 2.16 | J142: 6 | K142: 1 | L142: 1 | N142: 327.35 | O142: 1964.1 | P142: 1
A143: Korday_Chu_Merke | B143: DANONE | C143: 0 | D143: 0 | E143: 0 | F143: 11244 | G143: RASTISHKA DRINK 200G | H143: клубника | I143: 1.8 | J143: 9 | K143: 1 | L143: 1 | N143: 135.04 | O143: 1215.36 | P143: 1
A144: Korday_Chu_Merke | B144: DANONE | C144: 0 | D144: 0 | E144: 0 | F144: 101097 | G144: RASTISHKA DRINK 200G | H144: яблоко | I144: 1.8 | J144: 9 | K144: 1 | L144: 1 | N144: 135.04 | O144: 1215.36 | P144: 1
A145: Korday_Chu_Merke | B145: DANONE | C145: 0 | D145: 0 | E145: 0 | F145: 53311 | G145: RASTISHKA DRINK 200G | H145: лесные ягоды-злаки | I145: 1.8 | J145: 9 | K145: 1 | L145: 1 | N145: 135.04 | O145: 1215.36 | P145: 1
A146: Korday_Chu_Merke | B146: DANONE | C146: 0 | D146: 0 | E146: 0 | F146: 42913 | G146: RASTISHKA 6X45G | H146: клубника-абрикос | I146: 2.16 | J146: 8 | K146: 1 | L146: 1 | N146: 241.88 | O146: 1935.04 | P146: 1
A147: Korday_Chu_Merke | B147: DANONE | C147: 0 | D147: 0 | E147: 0 | F147: 42914 | G147: RASTISHKA 6X45G | H147: лесные ягоды-персик | I147: 2.16 | J147: 8 | K147: 1 | L147: 1 | N147: 241.88 | O147: 1935.04 | P147: 1
A148: Korday_Chu_Merke | B148: DANONE | C148: 0 | D148: 0 | E148: 0 | F148: 101184 | G148: RASTISHKA 6X45G | H148: клубника-банан-пломбир | I148: 2.16 | J148: 8 | K148: 1 | L148: 1 | N148: 241.88 | O148: 1935.04 | P148: 1
A149: Korday_Chu_Merke | B149: DANONE | C149: 0 | D149: 0 | E149: 0 | F149: 231101 | G149: RASTISHKA 110G yoghurt | H149: клубника | I149: 2.64 | J149: 24 | K149: 1 | L149: 1 | N149: 64.1 | O149: 1538.4 | P149: 1
A150: Korday_Chu_Merke | B150: DANONE | C150: 0 | D150: 0 | E150: 0 | F150: 2311010 | G150: RASTISHKA 110G yoghurt | H150: яблоко-груша | I150: 2.64 | J150: 24 | K150: 1 | L150: 1 | N150: 64.1 | O150: 1538.4 | P150: 1
A151: Korday_Chu_Merke | B151: DANONE | C151: 0 | D151: 0 | E151: 0 | F151: 2311014 | G151: RASTISHKA 110G yoghurt | H151: натуральный | I151: 2.64 | J151: 24 | K151: 1 | L151: 1 | N151: 64.1 | O151: 1538.4 | P151: 1
A152: Korday_Chu_Merke | B152: DANONE | C152: 0 | D152: 0 | E152: 0 | F152: 2311017 | G152: RASTISHKA 110G yoghurt | H152: банан | I152: 2.64 | J152: 24 | K152: 1 | L152: 1 | N152: 64.1 | O152: 1538.4 | P152: 1
A153: Korday_Chu_Merke | B153: DANONE | C153: 0 | D153: 0 | E153: 0 | F153: 34411255 | G153: RASTISHKA 4x110G multipack | H153: клубника | I153: 2.64 | J153: 6 | K153: 1 | L153: 1 | N153: 256.41 | O153: 1538.46 | P153: 1
A154: Korday_Chu_Merke | B154: DANONE | C154: 0 | D154: 0 | E154: 0 | F154: 34411265 | G154: RASTISHKA 4x110G multipack | H154: яблоко-груша | I154: 2.64 | J154: 6 | K154: 1 | L154: 1 | N154: 256.41 | O154: 1538.46 | P154: 1
A155: Korday_Chu_Merke | B155: DANONE | C155: 0 | D155: 0 | E155: 0 | F155: 2311019 | G155: RASTISHKA 4x110G multipack | H155: натуральный | I155: 2.64 | J155: 6 | K155: 1 | L155: 1 | N155: 256.41 | O155: 1538.46 | P155: 1
A156: Korday_Chu_Merke | B156: DANONE | C156: 0 | D156: 0 | E156: 0 | F156: 2311025 | G156: RASTISHKA 4x110G multipack | H156: банан | I156: 2.64 | J156: 6 | K156: 1 | L156: 1 | N156: 256.41 | O156: 1538.46 | P156: 1
A157: Korday_Chu_Merke | B157: DANONE | C157: 0 | D157: 0 | E157: 0 | F157: 100716 | G157: RASTISHKA cheese 100G | H157: клубника | I157: 0.8 | J157: 8 | K157: 1 | L157: 1 | N157: 78.63 | O157: 629.04 | P157: 1
A158: Korday_Chu_Merke | B158: DANONE | C158: 0 | D158: 0 | E158: 0 | F158: 100715 | G158: RASTISHKA cheese 100G | H158: банан | I158: 0.8 | J158: 8 | K158: 1 | L158: 1 | N158: 78.63 | O158: 629.04 | P158: 1
A159: Korday_Chu_Merke | B159: DANONE | C159: 0 | D159: 0 | E159: 0 | F159: 100713 | G159: RASTISHKA cheese 100G | H159: абрикос | I159: 0.8 | J159: 8 | K159: 1 | L159: 1 | N159: 78.63 | O159: 629.04 | P159: 1
A160: Korday_Chu_Merke | B160: DANONE | C160: 0 | D160: 0 | E160: 0 | F160: 99614 | G160: DANISSIMO 130G | H160: шоколад браво | I160: 1.04 | J160: 8 | K160: 1 | L160: 1 | N160: 135.04 | O160: 1080.32 | P160: 1
A161: Korday_Chu_Merke | B161: DANONE | C161: 0 | D161: 0 | E161: 0 | F161: 99619 | G161: DANISSIMO 130G | H161: клубника с кусочками бисквита | I161: 1.04 | J161: 8 | K161: 1 | L161: 1 | N161: 135.04 | O161: 1080.32 | P161: 1
A162: Korday_Chu_Merke | B162: DANONE | C162: 0 | D162: 0 | E162: 0 | F162: 99615 | G162: DANISSIMO 130G | H162: хрустящие шарики | I162: 1.04 | J162: 8 | K162: 1 | L162: 1 | N162: 135.04 | O162: 1080.32 | P162: 1
A163: Korday_Chu_Merke | B163: DANONE | C163: 0 | D163: 0 | E163: 0 | F163: 99618 | G163: DANISSIMO 130G | H163: пломбир | I163: 1.04 | J163: 8 | K163: 1 | L163: 1 | N163: 135.04 | O163: 1080.32 | P163: 1
A164: Korday_Chu_Merke | B164: DANONE | C164: 0 | D164: 0 | E164: 0 | F164: 83692 | G164: DANISSIMO 130G | H164: яблоко-киви | I164: 1.68 | J164: 12 | K164: 1 | L164: 1 | N164: 156.41 | O164: 1876.92 | P164: 1
A165: Korday_Chu_Merke | B165: DANONE | C165: 0 | D165: 0 | E165: 0 | F165: 85747 | G165: DANISSIMO 130G | H165: черная смородина | I165: 1.68 | J165: 12 | K165: 1 | L165: 1 | N165: 156.41 | O165: 1876.92 | P165: 1
A166: Korday_Chu_Merke | B166: DANONE | C166: 0 | D166: 0 | E166: 0 | F166: 48924 | G166: DANISSIMO 130G | H166: Фантазия Хрустящие шарики | I166: 1.26 | J166: 12 | K166: 1 | L166: 1 | N166: 113.68 | O166: 1364.16 | P166: 1
A167: Korday_Chu_Merke | B167: DANONE | C167: 0 | D167: 0 | E167: 0 | F167: 87437 | G167: DANISSIMO 130G | H167: Вишня-Шоколад | I167: 1.68 | J167: 12 | K167: 1 | L167: 1 | N167: 156.41 | O167: 1876.92 | P167: 1
A168: Korday_Chu_Merke | B168: DANONE | C168: 0 | D168: 0 | E168: 0 | F168: 15693003 | G168: Prostokvashino Zakvaska 930g | H168: 0.015 | I168: 5.58 | J168: 6 | K168: 1 | L168: 1 | N168: 277.78 | O168: 1666.68 | P168: 1
A169: Korday_Chu_Merke | B169: DANONE | C169: 0 | D169: 0 | E169: 0 | F169: 1569304 | G169: Prostokvashino Zakvaska 930g | H169: злаки | I169: 5.58 | J169: 6 | K169: 1 | L169: 1 | N169: 277.78 | O169: 1666.68 | P169: 1
A170: Korday_Chu_Merke | B170: DANONE | C170: 0 | D170: 0 | E170: 0 | F170: 1593005 | G170: Prostokvashino Kefir 930g | H170: 0.025 | I170: 5.58 | J170: 6 | K170: 1 | L170: 1 | N170: 277.78 | O170: 1666.68 | P170: 1
A171: Korday_Chu_Merke | B171: DANONE | C171: 0 | D171: 0 | E171: 0 | F171: 1593006 | G171: Prostokvashino Kefir 930g | H171: 0.032 | I171: 5.58 | J171: 6 | K171: 1 | L171: 1 | N171: 292.31 | O171: 1753.86 | P171: 1
A172: Korday_Chu_Merke | B172: DANONE | C172: 0 | D172: 0 | E172: 0 | F172: 1593000 | G172: Bio Balance kefirniy 930g | H172: 0% | I172: 5.58 | J172: 6 | K172: 1 | L172: 1 | N172: 263.25 | O172: 1579.5 | P172: 1
A173: Korday_Chu_Merke | B173: DANONE | C173: 0 | D173: 0 | E173: 0 | F173: 1593001 | G173: Bio Balance kefirniy 930g | H173: 1% | I173: 5.58 | J173: 6 | K173: 1 | L173: 1 | N173: 270.94 | O173: 1625.64 | P173: 1
A174: Korday_Chu_Merke | B174: DANONE | C174: 0 | D174: 0 | E174: 0 | F174: 1593015 | G174: Bio Balance kefirniy 930g | H174: 2,5% | I174: 5.58 | J174: 6 | K174: 1 | L174: 1 | N174: 277.78 | O174: 1666.68 | P174: 1
A175: Korday_Chu_Merke | B175: DANONE | C175: 0 | D175: 0 | E175: 0 | F175: 1593002 | G175: Bio Balance kefirniy Multipack 2x930g | H175: 0% | I175: 11.16 | J175: 6 | K175: 1 | L175: 1 | N175: 394.8749538 | O175: 2369.249723 | P175: 1
A176: Korday_Chu_Merke | B176: DANONE | C176: 0 | D176: 0 | E176: 0 | F176: 1593007 | G176: Bio Balance kefirniy Multipack 2x930g | H176: 1% | I176: 11.16 | J176: 6 | K176: 1 | L176: 1 | N176: 406.8408615 | O176: 2441.045169 | P176: 1
A177: Korday_Chu_Merke | B177: DANONE | C177: 0 | D177: 0 | E177: 0 | F177: 1593008 | G177: Bio Balance kefirniy Multipack 2x930g | H177: 2,5% | I177: 11.16 | J177: 6 | K177: 1 | L177: 1 | N177: 417.0973538 | O177: 2502.584123 | P177: 1
A178: Korday_Chu_Merke | B178: DANONE | C178: 0 | D178: 0 | E178: 0 | F178: 1593036 | G178: 930g Bio Balance IMMUNO Complex | H178: гранат | I178: 5.58 | J178: 6 | K178: 1 | L178: 1 | N178: 299.15 | O178: 1794.9 | P178: 1
A179: Korday_Chu_Merke | B179: DANONE | C179: 0 | D179: 0 | E179: 0 | F179: 1593021 | G179: 930g Bio Balance IMMUNO Complex | H179: ваниль | I179: 5.58 | J179: 6 | K179: 1 | L179: 1 | N179: 299.15 | O179: 1794.9 | P179: 1
A180: Korday_Chu_Merke | B180: DANONE | C180: 0 | D180: 0 | E180: 0 | F180: 1593092 | G180: 930g Bio Balance IMMUNO Complex | H180: клубника | I180: 5.58 | J180: 6 | K180: 1 | L180: 1 | N180: 299.15 | O180: 1794.9 | P180: 1
A181: Korday_Chu_Merke | B181: DANONE | C181: 0 | D181: 0 | E181: 0 | F181: 1593003 | G181: Bio Balance Airan 930g | H181: 0.015 | I181: 5.58 | J181: 6 | K181: 1 | L181: 1 | N181: 249.57 | O181: 1497.42 | P181: 1
A182: Aktobe, Atyrau, Uralsk | B182: DANONE | F182: 211101 | G182: DANONE 110G | H182: клубника | I182: 2.64 | J182: 24 | N182: 48.08035714 | O182: 1153.928571
A183: Aktobe, Atyrau, Uralsk | B183: DANONE | C183: =C182 -> 0 | D183: =D182 -> 0 | E183: =E182 -> 0 | F183: 211109 | G183: DANONE 110G | H183: вишня | I183: 2.64 | J183: 24 | N183: 48.08035714 | O183: 1153.928571
A184: Aktobe, Atyrau, Uralsk | B184: DANONE | C184: =C183 -> 0 | D184: =D183 -> 0 | E184: =E183 -> 0 | F184: 2111013 | G184: DANONE 110G | H184: черника | I184: 2.64 | J184: 24 | N184: 48.08035714 | O184: 1153.928571
A185: Aktobe, Atyrau, Uralsk | B185: DANONE | C185: 0 | D185: 0 | E185: 0 | F185: 211102 | G185: DANONE 110G | H185: персик-маракуйя | I185: 2.64 | J185: 24 | N185: 48.08035714 | O185: 1153.928571
A186: Aktobe, Atyrau, Uralsk | B186: DANONE | C186: 0 | D186: 0 | E186: 0 | F186: 2111014 | G186: DANONE 4*110G multipack | H186: клубника | I186: 2.64 | J186: 6 | N186: 165.5982143 | O186: 993.5892857
A187: Aktobe, Atyrau, Uralsk | B187: DANONE | C187: 0 | D187: 0 | E187: 0 | F187: 2111094 | G187: DANONE 4*110G multipack | H187: вишня | I187: 2.64 | J187: 6 | N187: 165.5982143 | O187: 993.5892857
A188: Aktobe, Atyrau, Uralsk | B188: DANONE | C188: 0 | D188: 0 | E188: 0 | F188: 21110134 | G188: DANONE 4*110G multipack | H188: персик-маракуйя | I188: 2.64 | J188: 6 | N188: 165.5982143 | O188: 993.5892857
A189: Aktobe, Atyrau, Uralsk | B189: DANONE | C189: 0 | D189: 0 | E189: 0 | F189: 21110024 | G189: DANONE 4*110G multipack | H189: черника | I189: 2.64 | J189: 6 | N189: 165.5982143 | O189: 993.5892857
A190: Aktobe, Atyrau, Uralsk | B190: DANONE | C190: 0 | D190: 0 | E190: 0 | F190: 112901 | G190: DANONE 290G DRINK | H190: клубника | I190: 2.61 | J190: 9 | N190: 108.3660714 | O190: 975.2946429
A191: Aktobe, Atyrau, Uralsk | B191: DANONE | C191: 0 | D191: 0 | E191: 0 | F191: 1129016 | G191: DANONE 290G DRINK | H191: персик | I191: 2.61 | J191: 9 | N191: 108.3660714 | O191: 975.2946429
A192: Aktobe, Atyrau, Uralsk | B192: DANONE | C192: 0 | D192: 0 | E192: 0 | F192: 1129018 | G192: DANONE 290G DRINK | H192: вишня-черешня | I192: 2.61 | J192: 9 | N192: 108.3660714 | O192: 975.2946429
A193: Aktobe, Atyrau, Uralsk | B193: DANONE | C193: 0 | D193: 0 | E193: 0 | F193: 119300 | G193: Danone 930 DRINK | H193: натуральный | I193: 5.58 | J193: 6 | N193: 248.0178571 | O193: 1488.107143
A194: Aktobe, Atyrau, Uralsk | B194: DANONE | C194: 0 | D194: 0 | E194: 0 | F194: 21618 | G194: ACTIMEL Imunnovitamin 1X100 (6 PACK) | H194: клубника | I194: 2.4 | J194: 24 | N194: 73.25892857 | O194: =N194*J194 -> 1758.214286
A195: Aktobe, Atyrau, Uralsk | B195: DANONE | C195: 0 | D195: 0 | E195: 0 | F195: 30269 | G195: ACTIMEL Imunnovitamin 1X100 (6 PACK) | H195: земляника-шиповник | I195: 2.4 | J195: 24 | L195: =1/K195 ->  | N195: 73.25892857 | O195: 1758.214286
A196: Aktobe, Atyrau, Uralsk | B196: DANONE | C196: 0 | D196: 0 | E196: 0 | F196: 21616 | G196: ACTIMEL Imunnovitamin 1X100 (6 PACK) | H196: натуральный | I196: 2.4 | J196: 24 | N196: 73.25892857 | O196: 1758.214286
A197: Aktobe, Atyrau, Uralsk | B197: DANONE | C197: 0 | D197: 0 | E197: 0 | F197: 21084 | G197: ACTIMEL Imunnovitamin 1X100 (6 PACK) | H197: гранат | I197: 2.4 | J197: 24 | N197: 73.25892857 | O197: 1758.214286
A198: Aktobe, Atyrau, Uralsk | B198: DANONE | C198: 0 | D198: 0 | E198: 0 | F198: 82408 | G198: ACTIMEL Imunnovitamin 1X100 (6 PACK) | H198: клубника-киви | I198: 2.4 | J198: 24 | N198: 73.25892857 | O198: 1758.214286
A199: Aktobe, Atyrau, Uralsk | B199: DANONE | C199: 0 | D199: 0 | E199: 0 | F199: 21139 | G199: ACTIMEL Imunnovitamin 1X100 (6 PACK) | H199: черника-ежевика | I199: 2.4 | J199: 24 | N199: 73.25892857 | O199: 1758.214286
A200: Aktobe, Atyrau, Uralsk | B200: DANONE | C200: 0 | D200: 0 | E200: 0 | F200: 85921 | G200: ACTIMEL Imunnovitamin 1X100 (6 PACK) | H200: розовый грейпфрут | I200: 2.4 | J200: 24 | N200: 73.25892857 | O200: 1758.214286
... 268 more rows
